fUSD/lending_fUSD_20250906
["ID","MTS","AMOUNT","RATE_DAILY","PERIOD"]
[383800023,1757121038198,-535.49835452,0.00056821,120]
[383800024,1757121038208,-400.0,0.00057095,120]
[383800025,1757121038217,-400.0,0.00057095,14]
[383800026,1757121038226,-400.0,0.00057369,120]
[383800027,1757121038235,-400.0,0.00057369,14]
[383800028,1757121038245,-400.0,0.00057643,120]
[383800029,1757121038254,-400.0,0.00057643,14]
[383800030,1757121038263,-400.0,0.00057917,120]
[383800031,1757121038273,-400.0,0.00057917,14]
[383800032,1757121038283,-300.0,0.00057973,15]
[383800033,1757121038292,-397.86449181,0.00057989,4]
[383800034,1757121038302,-2785.05144267,0.0005799,4]
[383800035,1757121038311,-400.0,0.00057999,120]
[383800036,1757121038320,-400.0,0.00057999,120]
[383800037,1757121038330,-400.0,0.00057999,120]
[383800039,1757121038339,-1598.45,0.00057999,120]
[383800041,1757121038349,-400.0,0.00057999,120]
[383800043,1757121038358,-400.0,0.00057999,120]
[383800045,1757121038368,-400.0,0.00057999,120]
[383800047,1757121038377,-400.0,0.00057999,120]
[383800049,1757121038387,-400.0,0.00057999,120]
[383800051,1757121038396,-483.86,0.00057999,120]
[383800053,1757121038406,-400.0,0.00057999,120]
[383800055,1757121038416,-200000.0,0.00058,120]
[383800057,1757121038425,-2887.95226818,0.000581,30]
[383800059,1757121038436,-400.0,0.00058191,120]
[383800061,1757121038446,-400.0,0.00058191,14]
[383800063,1757121038455,-257.91778498,0.00058272,2]
[383800065,1757121038464,-400.0,0.00058273,120]
[383800067,1757121038474,-400.0,0.00058273,120]
[383800069,1757121038484,-400.0,0.00058273,120]
[383800072,1757121038494,-1598.45,0.00058273,120]
[383800074,1757121038504,-400.0,0.00058273,120]
[383800076,1757121038513,-400.0,0.00058273,120]
[383800077,1757121038523,-400.0,0.00058273,120]
[383800079,1757121038532,-400.0,0.00058273,120]
[383800081,1757121038541,-400.0,0.00058465,120]
[383800083,1757121038551,-400.0,0.00058465,14]
[383800085,1757121038560,-217.32,0.00058547,120]
[383800087,1757121038570,-400.0,0.00058547,120]
[383800090,1757121038579,-400.0,0.00058547,120]
[383800091,1757121038589,-1598.45,0.00058547,120]
[383800094,1757121038601,-400.0,0.00058547,120]
[383800096,1757121038610,-400.0,0.00058547,120]
[383800098,1757121038619,-293.24,0.00058547,120]
[383800100,1757121038628,-400.0,0.00058739,120]
[383800102,1757121038637,-400.0,0.00058739,14]
[383800104,1757121038647,-400.0,0.00058821,120]
[383800106,1757121038657,-400.0,0.00058821,120]
[383800107,1757121038666,-1598.45,0.00058821,120]
[383800109,1757121038675,-400.0,0.00058821,120]
[383800111,1757121038684,-400.0,0.00059013,120]
[383800113,1757121038694,-400.0,0.00059013,14]
[383800115,1757121038703,-400.0,0.00059095,120]
[383800117,1757121038712,-400.0,0.00059095,120]
[383800119,1757121038722,-1598.45,0.00059095,120]
[383800121,1757121038731,-482.02,0.00059095,120]
[383800123,1757121038741,-529.2,0.00059287,120]
[383800125,1757121038751,-400.0,0.00059287,14]
[383800127,1757121038760,-400.0,0.00059369,120]
[383800129,1757121038769,-400.0,0.00059369,120]
[383800131,1757121038779,-1598.45,0.00059369,120]
[383800133,1757121038789,-400.0,0.00059561,14]
[383800135,1757121038798,-1000.0,0.000596,90]
[383800137,1757121038808,-267.46074303,0.00059641,2]
[383800139,1757121038817,-400.0,0.00059643,120]
[383800141,1757121038826,-400.0,0.00059643,120]
[383800143,1757121038836,-1598.45,0.00059643,120]
[383800145,1757121038846,-400.0,0.00059835,14]
[383800147,1757121038855,-382.75,0.00059917,120]
[383800149,1757121038865,-400.0,0.00059917,120]
[383800151,1757121038874,-1598.45,0.00059917,120]
[383800153,1757121038883,-25953.6914052,0.0005999,5]
[383800156,1757121038894,-200000.0,0.0006,120]
[383800157,1757121038904,-400.0,0.00060109,14]
[383800160,1757121038914,-400.0,0.00060191,120]
[383800161,1757121038923,-1598.45,0.00060191,120]
[383800163,1757121038932,-400.0,0.00060383,14]
[383800165,1757121038941,-400.0,0.00060465,120]
[383800167,1757121038951,-1598.45,0.00060465,120]
[383800169,1757121038960,-198.15,0.00060657,14]
[383800171,1757121038970,-177.68,0.00060739,120]
[383800173,1757121038980,-1598.45,0.00060739,120]
[383800176,1757121038990,-277.35679052,0.0006101,2]
[383800178,1757121038999,-1598.45,0.00061013,120]
[383800179,1757121039009,-1598.45,0.00061287,120]
[383800181,1757121039018,-150.0,0.0006143,120]
[383800183,1757121039028,-1598.45,0.00061561,120]
[383800185,1757121039037,-500.0,0.00061796,120]
[383800187,1757121039051,-1598.45,0.00061835,120]
[383800189,1757121039061,-1598.45,0.00062109,120]
[383800191,1757121039071,-150.0,0.00062191,120]
[383800193,1757121039080,-150.0,0.00062191,120]
[383800195,1757121039090,-150.0,0.00062191,120]
[383800197,1757121039101,-150.0,0.00062191,120]
[383800199,1757121039111,-150.0,0.00062191,120]
[383800201,1757121039121,-150.0,0.00062191,120]
[383800203,1757121039130,-150.0,0.00062191,120]
[383800205,1757121039140,-150.0,0.00062191,120]
[383800207,1757121039150,-150.0,0.00062191,120]
[383800209,1757121039160,-150.0,0.00062191,120]
[383800211,1757121039169,-250.0,0.00062191,120]
[383800213,1757121039179,-150.0,0.00062191,120]
[383800215,1757121039188,-150.0,0.00062191,120]
[383800217,1757121039197,-150.0,0.00062191,120]
[383800219,1757121039206,-150.0,0.00062191,120]
[383800221,1757121039215,-150.0,0.00062191,120]
[383800223,1757121039224,-150.0,0.00062191,120]
[383800225,1757121039234,-150.0,0.00062191,120]
[383800227,1757121039243,-150.0,0.00062191,120]
[383800229,1757121039252,-150.0,0.00062191,120]
[383800231,1757121039262,-150.0,0.00062191,120]
[383800233,1757121039271,-150.0,0.00062191,2]
[383800235,1757121039281,-150.0,0.00062191,2]
[383800237,1757121039290,-150.0,0.00062191,120]
[383800239,1757121039300,-150.0,0.00062191,120]
[383800241,1757121039309,-150.0,0.00062191,2]
[383800243,1757121039319,-150.0,0.00062191,120]
[383800244,1757121039328,-150.0,0.00062191,120]
[383800245,1757121039337,-150.0,0.00062191,120]
[383800246,1757121039346,-287.61899177,0.00062379,2]
[383800247,1757121039355,-1598.45,0.00062383,120]
[383800248,1757121039364,-154.0,0.000624,120]
[383800249,1757121039373,-2359.42649138,0.00062455,5]
[383800250,1757121039381,-150.0,0.00062465,120]
[383800251,1757121039390,-200.0,0.00062465,120]
[383800252,1757121039399,-150.0,0.00062465,120]
[383800253,1757121039408,-150.0,0.00062465,120]
[383800254,1757121039417,-150.0,0.00062465,120]
[383800255,1757121039426,-150.0,0.00062465,120]
[383800256,1757121039435,-150.0,0.00062465,120]
[383800257,1757121039445,-150.0,0.00062465,120]
[383800259,1757121039454,-150.0,0.00062465,120]
[383800261,1757121039463,-150.0,0.00062465,120]
[383800263,1757121039472,-150.0,0.00062465,120]
[383800265,1757121039482,-150.0,0.00062465,120]
[383800267,1757121039491,-287.22,0.00062465,120]
[383800270,1757121039509,-150.0,0.00062465,120]
[383800273,1757121039523,-150.0,0.00062465,120]
[383800275,1757121039533,-1598.45,0.00062657,120]
[383800277,1757121039542,-150.0,0.00062739,120]
[383800279,1757121039551,-150.0,0.00062739,120]
[383800281,1757121039561,-200.0,0.00062739,120]
[383800283,1757121039570,-200.0,0.00062739,120]
[383800285,1757121039579,-200.0,0.00062739,120]
[383800287,1757121039589,-200.0,0.00062739,120]
[383800289,1757121039598,-200.0,0.00062739,120]
[383800291,1757121039607,-200.0,0.00062739,120]
[383800293,1757121039617,-200.0,0.00062739,120]
[383800295,1757121039627,-200.0,0.00062739,120]
[383800297,1757121039637,-192.0,0.00062739,120]
[383800299,1757121039646,-200.0,0.00062739,120]
[383800301,1757121039655,-200.0,0.00062739,120]
[383800303,1757121039665,-1598.45,0.00062931,120]
[383800305,1757121039675,-150.0,0.00063013,120]
[383800307,1757121039684,-168.0,0.00063013,120]
[383800309,1757121039694,-155.06,0.00063014,2]
[383800311,1757121039704,-1598.45,0.00063205,120]
[383800313,1757121039713,-214.0,0.00063287,120]
[383800315,1757121039723,-1598.45,0.00063479,120]
[383800317,1757121039733,-150.0,0.00063561,120]
[383800319,1757121039743,-298.26089446,0.00063748,2]
[383800321,1757121039752,-1598.45,0.00063753,120]
[383800323,1757121039761,-1598.45,0.00064027,120]
[383800325,1757121039770,-150.0,0.000641,30]
[383800327,1757121039780,-150.0,0.00064195,30]
[383800329,1757121039789,-1598.64316804,0.00064301,120]
[383800331,1757121039798,-150.0,0.00064307,30]
[383800333,1757121039808,-150.0,0.00064309,30]
[383800335,1757121039817,-150.0,0.00064734,30]
[383800337,1757121039826,-200.0,0.00064931,120]
[383800339,1757121039836,-309.29654756,0.00065117,2]
[383800341,1757121039846,-320.74051982,0.00066486,2]
[383800343,1757121039855,-500.0,0.00067159,120]
[383800345,1757121039865,-165.61,0.00067538,2]
[383800347,1757121039875,-332.60791905,0.00067855,2]
[383800349,1757121039884,-271.1,0.00069,120]
[383800351,1757121039893,-344.91441206,0.00069224,2]
[383800353,1757121039905,-150.000001,0.0007,120]
[383800355,1757121039914,-168.0,0.00070224,2]
[383800357,1757121039925,-357.6762453,0.00070593,2]
[383800359,1757121039934,-2359.42649138,0.0007167,6]
[383800361,1757121039943,-1000.0,0.0007168,30]
[383800363,1757121039953,-12044.0901,0.0007168,2]
[383800365,1757121039963,-1000.0,0.0007168,2]
[383800367,1757121039972,-5929.13,0.0007178,120]
[383800369,1757121039981,-5929.13,0.0007178,120]
[383800371,1757121039990,-5929.13,0.0007178,120]
[383800373,1757121040000,-5929.13,0.0007178,120]
[383800375,1757121040009,-5929.13,0.0007178,120]
[383800377,1757121040019,-5929.13,0.0007178,120]
[383800380,1757121040029,-5929.13,0.0007178,120]
[383800383,1757121040038,-5929.13,0.0007178,120]
[383800385,1757121040052,-5929.13,0.0007178,120]
[383800387,1757121040061,-5929.13,0.0007178,120]
[383800389,1757121040071,-5929.13,0.0007178,120]
[383800391,1757121040080,-5929.13,0.0007178,120]
[383800393,1757121040090,-5929.13,0.0007178,120]
[383800395,1757121040099,-5929.13,0.0007178,120]
[383800397,1757121040109,-5929.13,0.0007178,120]
[383800399,1757121040120,-5929.13,0.0007178,120]
[383800401,1757121040131,-5929.13,0.0007178,120]
[383800403,1757121040141,-5929.13,0.0007178,120]
[383800405,1757121040150,-5929.13,0.0007178,120]
[383800407,1757121040159,-5929.13,0.0007178,120]
[383800409,1757121040169,-5929.13,0.0007178,120]
[383800411,1757121040179,-5929.13,0.0007178,120]
[383800413,1757121040187,-5929.13,0.0007178,120]
[383800415,1757121040197,-5929.36085461,0.0007178,120]
[383800417,1757121040206,-221.12386832,0.00071962,2]
[383800419,1757121040215,-168.0,0.00072155,2]
[383800421,1757121040225,-168.0,0.00072465,2]
[383800423,1757121040234,-168.0,0.0007344,7]
[383800425,1757121040244,-168.0,0.00073666,2]
[383800427,1757121040254,-168.0,0.00073748,7]
[383800429,1757121040264,-285.445,0.00074091,120]
[383800431,1757121040274,-154.0,0.000746,120]
[383800434,1757121040285,-168.0,0.00074901,2]
[383800436,1757121040295,-168.0,0.00074936,7]
[383800438,1757121040305,-168.0,0.00076684,2]
[383800440,1757121040315,-168.0,0.00076992,2]
[383800442,1757121040324,-212.63008182,0.00077351,2]
[383800444,1757121040333,-3071.0,0.00078492,120]
[383800446,1757121040343,-500.0,0.00079645,120]
[383800448,1757121040352,-4718.85298276,0.00079989,6]
[383800450,1757121040362,-437.5,0.00079999,120]
[383800452,1757121040371,-400.0,0.00079999,120]
[383800454,1757121040381,-400.0,0.00079999,120]
[383800456,1757121040390,-400.0,0.00079999,120]
[383800458,1757121040400,-400.0,0.00079999,120]
[383800460,1757121040409,-400.0,0.00079999,120]
[383800462,1757121040418,-400.0,0.00079999,120]
[383800464,1757121040428,-400.0,0.00079999,120]
[383800466,1757121040437,-400.0,0.00079999,120]
[383800468,1757121040447,-400.0,0.00079999,120]
[383800470,1757121040457,-400.0,0.00079999,120]
[383800472,1757121040467,-400.0,0.00079999,120]
[383800474,1757121040476,-400.0,0.00079999,120]
[383800476,1757121040486,-400.0,0.00079999,120]
[383800478,1757121040495,-400.0,0.00079999,120]
[383800480,1757121040504,-400.0,0.00079999,120]
[383800482,1757121040514,-400.0,0.00079999,120]
[383800484,1757121040523,-404.05,0.00079999,120]
[383800486,1757121040532,-400.0,0.00079999,120]
[383800488,1757121040541,-400.0,0.00079999,30]
[383800490,1757121040550,-400.0,0.00079999,120]
[383800492,1757121040559,-400.0,0.00079999,120]
[383800494,1757121040568,-400.0,0.00079999,120]
[383800496,1757121040577,-400.0,0.00079999,120]
[383800498,1757121040586,-400.0,0.00079999,120]
[383800500,1757121040595,-400.0,0.00079999,120]
[383800502,1757121040604,-400.0,0.00079999,120]
[383800504,1757121040613,-400.0,0.00079999,120]
[383800506,1757121040621,-400.0,0.00079999,120]
[383800508,1757121040630,-472.9,0.00079999,60]
[383800510,1757121040639,-400.0,0.00079999,120]
[383800512,1757121040648,-308.95570741,0.00079999,120]
[383800514,1757121040656,-400.0,0.00079999,120]
[383800516,1757121040666,-435.26,0.00079999,120]
[383800518,1757121040674,-229.44,0.00079999,120]
[383800520,1757121040683,-243.9,0.00079999,120]
[383800521,1757121040691,-400.0,0.00079999,120]
[383800523,1757121040700,-418.9,0.00079999,120]
[383800525,1757121040709,-400.0,0.00079999,120]
[383800527,1757121040718,-400.0,0.00079999,120]
[383800529,1757121040727,-400.0,0.00079999,120]
[383800531,1757121040736,-401.75458383,0.00079999,120]
[383800533,1757121040745,-400.0,0.00079999,120]
[383800535,1757121040755,-415.35,0.00079999,120]
[383800537,1757121040764,-400.0,0.00079999,120]
[383800539,1757121040774,-400.0,0.00079999,120]
[383800541,1757121040783,-520.84,0.00079999,120]
[383800543,1757121040793,-400.0,0.00079999,120]
[383800545,1757121040802,-400.0,0.00079999,120]
[383800547,1757121040811,-400.0,0.00079999,120]
[383800549,1757121040823,-498.69,0.00079999,120]
[383800552,1757121040834,-400.0,0.00079999,120]
[383800554,1757121040843,-400.0,0.00079999,120]
[383800556,1757121040853,-400.0,0.00079999,120]
[383800558,1757121040862,-150.0,0.00079999,120]
[383800560,1757121040872,-400.0,0.00079999,120]
[383800562,1757121040882,-400.0,0.00079999,120]
[383800564,1757121040891,-400.0,0.00079999,120]
[383800566,1757121040901,-400.0,0.00079999,120]
[383800567,1757121040913,-400.0,0.00079999,120]
[383800570,1757121040922,-400.0,0.00079999,120]
[383800572,1757121040937,-500.0,0.00079999,120]
[383800574,1757121040951,-400.0,0.00079999,120]
[383800576,1757121040962,-400.0,0.00079999,120]
[383800578,1757121040979,-545.69,0.00079999,120]
[383800580,1757121040989,-400.0,0.00079999,120]
[383800582,1757121041000,-400.0,0.00079999,120]
[383800584,1757121041010,-298.26240599,0.00079999,110]
[383800586,1757121041022,-400.0,0.00079999,120]
[383800588,1757121041031,-400.0,0.00079999,120]
[383800590,1757121041041,-400.0,0.00079999,120]
[383800592,1757121041057,-400.0,0.00079999,120]
[383800594,1757121041066,-1000.0,0.0008,120]
[383800596,1757121041075,-2359.42649138,0.00080263,6]
[383800598,1757121041087,-437.5,0.00080273,120]
[383800600,1757121041098,-400.0,0.00080273,120]
[383800602,1757121041107,-210.42,0.00080273,120]
[383800604,1757121041116,-185.76,0.00080273,120]
[383800606,1757121041129,-400.0,0.00080273,120]
[383800608,1757121041140,-400.0,0.00080273,120]
[383800610,1757121041149,-400.0,0.00080273,120]
[383800613,1757121041159,-400.0,0.00080273,120]
[383800614,1757121041168,-144.27948924,0.00080273,120]
[383800617,1757121041185,-132.9424755,0.00080273,120]
[383800619,1757121041194,-400.0,0.00080273,120]
[383800621,1757121041204,-400.0,0.00080273,120]
[383800623,1757121041214,-400.0,0.00080273,120]
[383800625,1757121041223,-496.9,0.00080273,120]
[383800627,1757121041232,-214.37,0.00080273,120]
[383800629,1757121041242,-156.89,0.00080273,120]
[383800631,1757121041251,-389.73,0.00080273,120]
[383800633,1757121041260,-400.0,0.00080273,120]
[383800635,1757121041269,-400.0,0.00080273,120]
[383800637,1757121041278,-400.0,0.00080273,120]
[383800639,1757121041289,-286.96702105,0.00080273,120]
[383800642,1757121041300,-400.0,0.00080273,120]
[383800643,1757121041311,-400.0,0.00080273,120]
[383800646,1757121041321,-400.0,0.00080273,120]
[383800648,1757121041330,-400.0,0.00080273,120]
[383800650,1757121041340,-400.0,0.00080273,120]
[383800652,1757121041349,-400.0,0.00080273,120]
[383800654,1757121041358,-400.0,0.00080273,120]
[383800656,1757121041367,-400.0,0.00080273,120]
[383800658,1757121041377,-400.0,0.00080273,120]
[383800660,1757121041386,-585.83482993,0.00080537,6]
[383800739,1757121042135,-52.90516206,0.00080537,6]
[383800741,1757121042154,-1265.17015412,0.00080537,6]
[383800746,1757121042201,-314.85711737,0.00080537,6]
[383800771,1757121042528,-89.62050295,0.00080537,6]
[383800778,1757121042582,-51.03872495,0.00080537,6]
[383800780,1757121042592,-437.5,0.00080547,120]
[383800782,1757121042602,-400.0,0.00080547,120]
[383800784,1757121042612,-400.0,0.00080547,120]
[383800786,1757121042621,-400.0,0.00080547,120]
[383800788,1757121042630,-502.36,0.00080547,120]
[383800790,1757121042640,-200.49421606,0.00080547,120]
[383800792,1757121042649,-476.21,0.00080547,120]
[383800794,1757121042658,-400.0,0.00080547,120]
[383800796,1757121042668,-400.0,0.00080547,120]
[383800798,1757121042678,-400.0,0.00080547,120]
[383800800,1757121042687,-400.0,0.00080547,120]
[383800802,1757121042696,-400.0,0.00080547,120]
[383800804,1757121042705,-400.0,0.00080547,120]
[383800806,1757121042715,-400.0,0.00080547,120]
[383800808,1757121042724,-400.0,0.00080547,120]
[383800810,1757121042733,-2359.42649138,0.00080811,6]
[383800812,1757121042742,-437.5,0.00080821,120]
[383800814,1757121042752,-400.0,0.00080821,120]
[383800816,1757121042761,-400.0,0.00080821,120]
[383800818,1757121042771,-545.75607524,0.00080821,120]
[383800820,1757121042780,-400.0,0.00080821,120]
[383800822,1757121042790,-400.0,0.00080821,120]
[383800824,1757121042799,-400.0,0.00080821,120]
[383800827,1757121042809,-400.0,0.00080821,120]
[383800829,1757121042818,-400.0,0.00080821,120]
[383800831,1757121042830,-1000.0,0.00081,120]
[383800833,1757121042840,-2359.42649138,0.00081092,6]
[383800835,1757121042849,-437.5,0.00081095,120]
[383800837,1757121042859,-197.09064122,0.00081095,120]
[383800840,1757121042869,-400.0,0.00081095,120]
[383800842,1757121042879,-400.0,0.00081095,120]
[383800844,1757121042888,-323.85273226,0.00081095,120]
[383800846,1757121042897,-324.82843775,0.00081095,120]
[383800848,1757121042907,-400.0,0.00081095,120]
[383800850,1757121042916,-437.5,0.00081369,120]
[383800852,1757121042925,-400.0,0.00081369,120]
[383800854,1757121042935,-400.0,0.00081369,120]
[383800856,1757121042945,-337.0657,0.0008146,120]
[383800858,1757121042955,-2359.42649138,0.00081633,6]
[383800860,1757121042966,-269.83336564,0.00081643,120]
[383801025,1757121044540,-33.62016295,0.00081643,120]
[383801034,1757121044622,-134.04647141,0.00081643,120]
[383801036,1757121044633,-469.54,0.00081643,120]
[383801038,1757121044644,-400.0,0.00081643,120]
[383801040,1757121044654,-437.5,0.00081917,120]
[383801043,1757121044665,-337.0657,0.0008196,120]
[383801045,1757121044676,-1000.0,0.00082,120]
[383801047,1757121044688,-4718.85298276,0.00082181,6]
[383801049,1757121044699,-437.5,0.00082191,120]
[383801051,1757121044709,-337.0657,0.00082191,120]
[383801053,1757121044720,-1033.33,0.00082191,120]
[383801055,1757121044731,-1033.33,0.00082191,120]
[383801057,1757121044741,-1033.33,0.00082191,120]
[383801059,1757121044752,-1033.33,0.00082191,120]
[383801061,1757121044763,-1033.33,0.00082191,120]
[383801064,1757121044774,-1033.33,0.00082191,120]
[383801066,1757121044785,-1033.33,0.00082191,120]
[383801068,1757121044797,-1033.33,0.00082191,120]
[383801070,1757121044807,-1033.33,0.00082191,120]
[383801072,1757121044817,-1033.33,0.00082191,120]
[383801074,1757121044827,-1033.33,0.00082191,120]
[383801076,1757121044841,-1033.33,0.00082191,120]
[383801077,1757121044851,-1033.33,0.00082191,120]
[383801078,1757121044861,-1033.33,0.00082191,120]
[383801079,1757121044871,-1033.33,0.00082191,120]
[383801080,1757121044881,-1033.33,0.00082191,120]
[383801081,1757121044891,-1033.33,0.00082191,120]
[383801082,1757121044902,-1033.33,0.00082191,120]
[383801083,1757121044912,-1033.33,0.00082191,120]
[383801084,1757121044921,-1033.33,0.00082191,120]
[383801085,1757121044931,-1033.33,0.00082191,120]
[383801086,1757121044942,-1033.33,0.00082191,120]
[383801088,1757121044953,-1033.33,0.00082191,120]
[383801090,1757121044963,-1033.41,0.00082191,120]
[383801092,1757121044973,-2359.42649138,0.00082455,7]
[383801094,1757121044984,-337.06571,0.0008246,120]
[383801096,1757121044994,-437.5,0.00082465,120]
[383801099,1757121045006,-500.0,0.00082603,2]
[383801101,1757121045017,-437.5,0.00082739,120]
[383801103,1757121045028,-188.75468766,0.0008295,120]
[383801105,1757121045040,-337.0657,0.0008296,120]
[383801108,1757121045056,-1000.0,0.00083,120]
[383801110,1757121045067,-2359.42649138,0.00083003,7]
[383801112,1757121045076,-437.5,0.00083013,120]
[383801114,1757121045088,-3494.19022541,0.0008304,7]
[383801250,1757121046338,-5943.51574011,0.0008304,7]
[383801253,1757121046348,-175.66517981,0.0008304,7]
[383801255,1757121046359,-14690.215,0.0008305,120]
[383801257,1757121046369,-14690.216,0.0008305,120]
[383801259,1757121046379,-14690.215,0.0008305,120]
[383801261,1757121046388,-14690.216,0.0008305,120]
[383801263,1757121046398,-14690.215,0.0008305,120]
[383801265,1757121046408,-494.27,0.000831,60]
[383801267,1757121046419,-198.78,0.000831,60]
[383801269,1757121046429,-2359.42649138,0.00083277,7]
[383801271,1757121046440,-437.5,0.00083287,120]
[383801274,1757121046452,-337.0657,0.0008346,120]
[383801276,1757121046464,-437.5,0.00083561,120]
[383801278,1757121046476,-151.44,0.00083815,120]
[383801281,1757121046488,-2359.42649138,0.00083825,7]
[383801283,1757121046499,-437.5,0.00083835,120]
[383801285,1757121046509,-1000.0,0.00084,120]
[383801287,1757121046519,-514.736181,0.00084,7]
[383801289,1757121046529,-152.12,0.00084097,120]
[383801291,1757121046539,-437.5,0.00084109,120]
[383801293,1757121046549,-2359.42649138,0.00084373,7]
[383801295,1757121046559,-437.5,0.00084383,120]
[383801297,1757121046569,-4000.0,0.000845,120]
[383801299,1757121046579,-437.5,0.00084657,120]
[383801301,1757121046589,-2359.42649138,0.00084921,7]
[383801303,1757121046600,-437.5,0.00084931,120]
[383801306,1757121046611,-2000.0,0.00085,120]
[383801308,1757121046621,-437.5,0.00085205,120]
[383801310,1757121046632,-198.78,0.000854,60]
[383801312,1757121046642,-2359.42649138,0.00085469,7]
[383801314,1757121046652,-437.5,0.00085479,120]
[383801316,1757121046663,-437.5,0.00085753,120]
[383801318,1757121046674,-2000.0,0.00086,120]
[383801320,1757121046684,-2359.42649138,0.00086017,7]
[383801322,1757121046694,-437.5,0.00086027,120]
[383801324,1757121046704,-437.5,0.00086301,120]
[383801327,1757121046714,-154.0,0.000868,120]
[383801329,1757121046725,-2000.0,0.00087,120]
[383801331,1757121046736,-150.0,0.00087565,120]
[383801333,1757121046746,-155.06,0.00087671,120]
[383801335,1757121046755,-4718.85298276,0.0008789,7]
[383801337,1757121046765,-151.44,0.0008789,120]
[383801339,1757121046775,-151.44,0.0008789,120]
[383801341,1757121046785,-191000.6223,0.000879,120]
[383801343,1757121046795,-200.0,0.00087984,110]
[383801345,1757121046804,-200.0,0.00087984,110]
[383801347,1757121046814,-200.0,0.00087984,110]
[383801350,1757121046824,-2000.0,0.00088,120]
[383801352,1757121046834,-198.78,0.00088,60]
[383801355,1757121046846,-2000.0,0.00089,120]
[383801357,1757121046856,-2000.0,0.0009,120]
[383801359,1757121046866,-3063.48367348,0.00090988,120]
[383801361,1757121046876,-2000.0,0.00091,120]
[383801363,1757121046886,-500.00000099,0.00091269,120]
[383801365,1757121046895,-4428.0,0.00091553,60]
[383801367,1757121046907,-2000.0,0.00092,120]
[383801369,1757121046917,-285.445,0.00092046,120]
[383801371,1757121046927,-2000.0,0.00093,120]
[383801373,1757121046938,-174.0,0.00093,120]
[383801375,1757121046947,-165.0,0.00093,120]
[383801377,1757121046958,-2000.0,0.00094,120]
[383801379,1757121046968,-4850.0,0.00094054,120]
[383801382,1757121046979,-757.41,0.00094181,120]
[383801384,1757121046989,-121193.30327411,0.000945,120]
[383801781,1757121228095,160.661612,0.00036164,10]
[383801782,1757121228739,155.447563,0.00036164,10]
[383801783,1757121257470,158.974861,0.00036164,10]
[383801791,1757121350067,168.61196,0.00036164,10]
[383801797,1757121514349,155.76,0.00013699,2]
[383801799,1757121910804,22171.07190218,0.000264,2]
[383801800,1757121911117,2923.37981936,0.000154,2]
[383801801,1757121920829,2327.92,9e-05,2]
[383801802,1757121929596,10061.87243415,0.00035,120]
[383801803,1757121937371,4222.48984831,9e-05,2]
[383801804,1757121937400,4229.52809649,9e-05,2]
[383801805,1757121942368,45370.47190351,0.00025,2]
[383801806,1757121942397,44335.8578144,0.00025,2]
[383801807,1757121942423,449.23184459,0.00025,2]
[383801808,1757121963911,1993.35765064,8e-05,2]
[383801809,1757121973084,197.86,0.0003,5]